Cogmind - Beta 13 @@@ ROGUE MODE // 2024.06.15 @ 00:31:11 Player: f3-rnm Result: Destroyed by S-27 Virus with Autogun Performance ------------- Evolutions (5) 2500 Regions Visited (20) 4000 Robots Destroyed (303) 1515 Value Destroyed (11080) 11080 Prototype IDs (36) 720 Alien Tech Used (0) 0 Bonus (4323) 4323 TOTAL SCORE: 24138 Bonus ------- High Alert Combat Kills 1484 Follower Combat Kills 742 Entered Garrisons 800 Used RIF Installer 1500 Aligned with FarCom 300 Friendly Fire -503 Cogmind --------- Core Integrity 0/1000 Matter 290/300 Energy 29/100 System Corruption 2% Temperature Hot (295) Movement Core (1450) Ox28 Location -5/Garrison Parts ------- > --- POWER (2) -------- (None) > --- PROPULSION (4) --- (None) > --- UTILITY (9) ------ Improved Cooling System Huge Storage Unit Experimental Terrain Scan Processor Experimental Core Analyzer Quantum Capacitor Experimental System Shield Relay Coupler [Behemoth] (5) > --- WEAPON (2) ------- (None) > --- INVENTORY (25) --- Carbon-fiber Leg Advanced Heat Sink Cargo Storage Unit Energy Well (350) High-capacity Matter Pod (86) Improved Kinecellerator Weapon Cycler Improved Transmission Jammer Layered Medium Armor Plating Relay Coupler [Grunt] (33) Relay Coupler [Specialist] (19) Relay Coupler [Heavy] (11) Long-range Tractor Beam Phasing AFG Wave Gun Heavy Plasma Cannon Magnetic Acceleration Cannon Hardcell Cannon Heavy Linear Accelerator Improved Remote Datajack Improved Plasma Cutter Peak State ------------ > --- POWER ------------ Reinforced Deuterium Engine Reinforced Deuterium Engine > --- PROPULSION ------- Improved Medium Treads Carbon-fiber Leg Antigrav System > --- UTILITY ---------- Improved Cooling System Huge Storage Unit Spectral Analyzer Experimental Core Analyzer Quantum Capacitor Improved Weapon Shielding Experimental System Shield Relay Coupler [Behemoth] > --- WEAPON ----------- Wave Gun Heavy Gatling Laser > --- INVENTORY -------- Advanced Heat Sink Cargo Storage Unit Energy Well High-capacity Matter Pod Structural Scanner Experimental Terrain Scan Processor Improved Kinecellerator Weapon Cycler Improved Transmission Jammer Layered Medium Armor Plating Layered Medium Armor Plating Relay Coupler [Grunt] Relay Coupler [Specialist] Relay Coupler [Heavy] Long-range Tractor Beam Phasing AFG Heavy Plasma Cannon Magnetic Acceleration Cannon Hardcell Cannon Heavy Linear Accelerator Improved Remote Datajack Improved Plasma Cutter [Rating: 102] Favorites ----------- Power Enhanced Nuclear Core Engine Cooled Ion Engine Power Core Enhanced Nuclear Core Propulsion Light Treads Treads Light Treads Leg Makeshift Leg Wheel Armored Wheel Hover Unit Antigrav System Utility Cooling System Device Cooling System Storage Cargo Storage Unit Processor 0b10 Decoder Chip [Generic] Hackware Relay Coupler [Grunt] Protection Heavy Reflective Plating Weapon Heavy Plasma Cannon Energy Gun Heavy EM Shotgun Energy Cannon Heavy Plasma Cannon Ballistic Gun Gauss Rifle Ballistic Cannon Heavy Linear Accelerator Launcher Rocket Launcher Special Weapon Improved Remote Datajack Impact Weapon Heavy Flail Build | -11 -10 -10 -9 -9 -9 -8 -8 -8 -8 -8 -7 -7 -7 -6 -6 -6 -6 -5 -5 -5 ------- Run | Yrd Mat Min Mat Min Exi Min Mat Gar Mat Gar Fac Gar Fac Fac Low Low Zio Pro Fac Gar Slots Evolved 10 | . . . 2 . . . 2 . . . 2 . . 2 . . . . 2 . Power 1 | . . . . . . . . . . . . . . . . . . . 1 . Propulsion 2 | . . . 1 . . . 1 . . . . . . . . . . . . . Utility 7 | . . . 1 . . . 1 . . . 2 . . 2 . . . . 1 . Weapon . | . . . . . . . . . . . . . . . . . . . . . Parts Attached 269 | 5 3 5 25 7 2 1 24 23 . 16 3 26 10 31 1 9 26 4 20 28 Power 19 | 1 1 . 3 . . . 1 1 . 1 1 . 1 1 . 1 1 . 2 4 Engine 11 | 1 1 . 3 . . . . 1 . 1 . . . . . . 1 . . 3 Core 8 | . . . . . . . 1 . . . 1 . 1 1 . 1 . . 2 1 Reactor . | . . . . . . . . . . . . . . . . . . . . . Propulsion 70 | 2 . 2 10 3 1 . 11 5 . 1 . 5 1 3 . 1 12 . 6 7 Treads 52 | 2 . 1 9 3 1 . 10 4 . 1 . 5 1 3 . . 7 . 1 4 Leg 7 | . . . . . . . . . . . . . . . . . 3 . 3 1 Wheel 10 | . . 1 1 . . . 1 1 . . . . . . . 1 2 . 2 1 Hover 1 | . . . . . . . . . . . . . . . . . . . . 1 Flight . | . . . . . . . . . . . . . . . . . . . . . Utility 99 | . 2 1 3 . 1 . 6 6 . 4 2 14 6 18 1 4 10 1 8 12 Device 45 | . 1 1 2 . . . 1 1 . 1 1 4 4 14 . . 7 1 . 7 Storage 7 | . 1 . . . . . 1 . . . . 2 . . 1 . . . 2 . Processor 9 | . . . . . . . 1 . . . 1 . . 1 . . 1 . 3 2 Hackware 13 | . . . . . . . . 1 . 2 . 4 . 1 . 2 . . 1 2 Protection 25 | . . . 1 . 1 . 3 4 . 1 . 4 2 2 . 2 2 . 2 1 Artifact . | . . . . . . . . . . . . . . . . . . . . . Weapon 81 | 2 . 2 9 4 . 1 6 11 . 10 . 7 2 9 . 3 3 3 4 5 Energy Gun 13 | 1 . . 2 . . . 2 4 . . . . 1 . . . . . 1 2 Energy Cannon 10 | . . . . . . . . . . . . 1 . 4 . 2 1 . 2 . Ballistic Gun 23 | 1 . 2 7 2 . 1 1 3 . 3 . . . 1 . . 1 . 1 . Ballistic Cannon 14 | . . . . . . . 2 . . 4 . 3 1 2 . . 1 . . 1 Launcher 8 | . . . . 2 . . 1 . . 1 . 1 . . . . . 3 . . Special Weapon 11 | . . . . . . . . 2 . 2 . 2 . 2 . 1 . . . 2 Impact Weapon 2 | . . . . . . . . 2 . . . . . . . . . . . . Slashing Weapon . | . . . . . . . . . . . . . . . . . . . . . Piercing Weapon . | . . . . . . . . . . . . . . . . . . . . . Special Melee Weapon . | . . . . . . . . . . . . . . . . . . . . . Unidentified Prototypes 13 | . . . 3 . . . 1 . . 1 1 . 1 1 . . . . 3 2 Corrupted Parts 2 | . . . . . . . 1 . . . . . . . . . 1 . . . System Corruption 11 | . . . . . . . 3 . . . . . . . . . 8 . . . Parts Lost 81 | . 1 6 7 1 . . 2 2 . . . 6 1 7 1 4 14 4 12 13 Power 14 | . 1 . 2 . . . . 1 . . . . . 1 . . 1 1 3 4 Propulsion 27 | . . 2 1 1 . . . 1 . . . 2 . 1 . 2 5 3 5 4 Utility 26 | . . 2 1 . . . 1 . . . . 3 1 4 1 2 5 . 2 4 Weapon 14 | . . 2 3 . . . 1 . . . . 1 . 1 . . 3 . 2 1 Highest Loss Streak 9 | . 1 3 2 1 . . 2 1 . . . 2 1 4 1 2 5 3 9 6 To Critical Strikes 1 | . . . . . . . . . . . . . . . . . 1 . . . Average Slot Usage (%) 82 | . 90 91 90 99 100 100 97 88 90 82 78 81 74 76 77 75 77 77 68 70 Engine 4 | . 14 14 9 11 11 11 4 2 9 9 5 . . . . . . 4 1 3 Core 3 | . . . . . . . 4 6 . . 1 7 7 6 6 6 4 . 2 . Treads 17 | . 28 19 20 32 33 33 36 22 18 11 7 16 23 19 20 12 15 . 2 8 Leg 1 | . . . . . . . . . . . . . . . . . 2 16 6 . Wheel 3 | . . 8 8 . . . . 6 9 9 7 1 . . . 3 3 6 3 2 Device 13 | . 10 5 8 11 11 11 8 9 9 9 11 8 8 22 20 20 21 23 10 5 Storage 8 | . 7 14 11 11 11 11 9 9 9 9 7 7 7 6 9 8 6 6 5 5 Processor 2 | . . . . . . . 7 1 . . 5 1 . 1 . . . 6 13 17 Hackware 4 | . . . . . . . . 7 9 12 15 17 12 2 . 3 4 . 4 10 Protection 5 | . . . 9 11 11 11 8 8 9 4 . 5 7 5 6 5 3 . 3 5 Energy Gun 1 | . 14 3 . . . . 9 2 . . . . . . . . . . . 4 Energy Cannon 3 | . . . . . . . . . . . . 4 . 6 13 12 8 . 3 . Ballistic Gun 7 | . 14 24 22 20 11 21 6 9 18 7 7 1 . 1 . . 1 6 4 . Ballistic Cannon 1 | . . . . . . . . . . 8 7 4 7 2 . . 2 . . 1 Naked Turns . | . . . . . . . . . . . . . . . . . . . . . Heaviest Build 208 | 7 48 48 57 58 64 64 106 117 117 124 103 197 197 208 191 188 187 167 157 129 Greatest Support 135 | 40 40 40 60 60 60 60 80 80 28 28 28 135 103 120 120 120 114 12 60 46 Greatest Overweight (x) 41 | . 1 2 3 . 1 1 1 4 4 4 3 4 1 1 1 15 15 13 13 41 Average Overweight (x) 3 | . . 1 1 . . 1 . 2 4 3 3 1 1 1 1 7 8 12 5 5 Largest Inventory Capacity 30 | 5 20 20 20 20 20 20 25 25 25 25 25 30 30 30 30 30 30 30 30 25 Average Capacity 25 | 5 13 20 20 20 20 20 23 25 25 25 25 27 30 30 30 30 30 30 26 25 Most Carried 30 | 3 9 14 20 20 20 19 25 25 25 25 25 30 30 30 28 28 30 30 29 25 Average Carried 23 | 1 5 11 19 19 19 19 22 24 25 24 24 25 29 29 27 25 27 29 24 24 Final Capacity 30 | 5 20 20 20 20 20 20 25 25 25 25 25 30 30 30 30 30 30 30 25 25 Final Carried 30 | 2 9 14 20 20 19 19 25 25 25 25 25 30 30 28 28 25 29 29 24 23 Class Distribution -------------------- 32% | Bothacker-Mutant 28% | Scavenger-Mutant 20% | Hauler-Mutant 18% | Mutant Dominant Class ---------------- Mutant | -10/Materials Mutant | -10/Mines Scavenger-Mutant | -9/Materials Scavenger-Mutant | -9/Mines Mutant | -9/Exiles Mutant | -8/Mines Scavenger-Mutant | -8/Materials Scavenger-Mutant | -8/Garrison Scavenger-Mutant | -8/Materials Scavenger-Mutant | -8/Garrison Scavenger-Mutant | -7/Factory Bothacker-Mutant | -7/Garrison Bothacker-Mutant | -7/Factory Bothacker-Mutant | -6/Factory Bothacker-Mutant | -6/Lower Caves Hauler-Mutant | -6/Lower Caves Hauler-Mutant | -6/Zion Hauler-Mutant | -5/Proximity Caves Scavenger-Mutant | -5/Factory Bothacker-Mutant | -5/Garrison Resources | -11 -10 -10 -9 -9 -9 -8 -8 -8 -8 -8 -7 -7 -7 -6 -6 -6 -6 -5 -5 -5 ----------- Run | Yrd Mat Min Mat Min Exi Min Mat Gar Mat Gar Fac Gar Fac Fac Low Low Zio Pro Fac Gar Matter Collected 8746 | 210 107 173 901 264 104 49 509 889 . 745 51 855 203 1308 55 237 904 241 204 737 Remotely 638 | . . . . . . . . . . . . . 157 171 . . 198 71 . 41 Salvage Created 11397 | . 299 537 1285 207 . 82 1788 1189 . 542 51 527 266 1171 358 656 1194 154 339 752 Parts 630 | . 21 57 95 12 . 4 82 59 . 36 . 35 13 52 17 21 71 5 23 27 Haulers Intercepted 11 | . . . 4 . . . 6 . . . . . 1 . . . . . . . Recyclers Shooed 2 | . . 1 . . . . . . . . . . . . . . . . 1 . Parts Field Recycled . | . . . . . . . . . . . . . . . . . . . . . Retrieved Matter . | . . . . . . . . . . . . . . . . . . . . . Parts Self-Destructed 53 | . . . . . . . . . . . . . . . 20 30 . 3 . . Prevented . | . . . . . . . . . . . . . . . . . . . . . Kills | -11 -10 -10 -9 -9 -9 -8 -8 -8 -8 -8 -7 -7 -7 -6 -6 -6 -6 -5 -5 -5 ------- Run | Yrd Mat Min Mat Min Exi Min Mat Gar Mat Gar Fac Gar Fac Fac Low Low Zio Pro Fac Gar Combat Hostiles Destroyed 223 | . 10 10 28 7 . 3 25 24 . 15 1 14 6 22 10 11 2 12 9 14 Guns 113 | . 10 10 28 6 . 1 14 24 . 4 . 1 . 3 . . . 1 2 9 Cannons 72 | . . . . . . . 3 . . 9 1 13 6 15 9 6 . . 7 3 AOE 26 | . . . . 1 . 2 8 . . 2 . . . 2 . . . 11 . . Classes Destroyed 21 | . 4 2 5 . . 1 . 3 . . . 1 . . . 1 3 1 . . Worker 10 | . 1 . 3 1 . . 3 . . . . . . 2 . . . . . . Builder 19 | . . 9 . . . 1 4 . . . . . . 3 . . . . 2 . Tunneler 2 | . . 1 . . . . . . . . . . . 1 . . . . . . Hauler 12 | . . . 4 . . . 6 . . 1 . . 1 . . . . . . . Recycler 5 | . . . 2 . . . 1 . . . . . 1 1 . . . . . . Operator 3 | . 1 . 1 . . . 1 . . . . . . . . . . . . . Drone 2 | . . . . . . . . . . . . . . . . . . 2 . . Watcher 8 | . . . 4 . . . 3 . . . . . . 1 . . . . . . Swarmer 55 | . 6 3 8 1 . . . 1 . 6 . . . 6 7 2 . 9 5 1 Cutter 6 | . . . . . . . . . . . . 3 . . . . . . . 3 Grunt 87 | . 4 7 11 5 . 2 15 11 . 6 . 3 5 7 2 7 . . . 2 Brawler 5 | . . . . . . 1 1 . . 1 . . . 1 . . . . . 1 Duelist 6 | . . . 1 1 . . . . . . . . . 1 1 1 . . . 1 Sentry 33 | . . . 8 . . . 9 4 . 2 1 2 1 3 . 1 . . . 2 Specialist 4 | . . . . . . . . 3 . . . 1 . . . . . . . . Hunter 7 | . . . . . . . . 2 . . . . . 2 . . . 1 . 2 Programmer 14 | . . . . . . . . 3 . . . 5 . 2 . . . . 4 . Behemoth 2 | . . . . . . . . . . . . . . . . . . . . 2 Zionite 51 | . . . . . . . . . . . . . . . . . 51 . . . Tinkerer 2 | . . . . . . . . . . . . . . . . . 2 . . . Marauder 2 | . . . . . . . . . . . . . . . . . 2 . . . Mutant 1 | . . . . . . . . . . . . . . . . 1 . . . . Best Kill Streak 7 | . 4 2 5 5 . 3 7 5 . 3 1 3 3 6 4 3 7 5 3 3 Combat Bots Only 6 | . 3 2 4 5 . 3 5 5 . 3 1 3 3 6 4 3 2 5 3 3 Max Kills in Single Turn 5 | . 2 1 2 1 . 1 3 1 . 1 1 2 1 2 1 1 1 5 1 1 Gunslinging 1 | . 1 . 1 . . . . . . . . . . . . . . . . . Exploded 5 | . . . . 1 . 1 3 . . 1 . . . 1 . . . 5 . . Melee . | . . . . . . . . . . . . . . . . . . . . . Uniques/NPCs Destroyed . | . . . . . . . . . . . . . . . . . . . . . Combat | -11 -10 -10 -9 -9 -9 -8 -8 -8 -8 -8 -7 -7 -7 -6 -6 -6 -6 -5 -5 -5 -------- Run | Yrd Mat Min Mat Min Exi Min Mat Gar Mat Gar Fac Gar Fac Fac Low Low Zio Pro Fac Gar Hostile Shots Fired 1647 | . 54 70 118 45 . 6 72 131 . 68 9 117 42 219 60 90 226 49 89 182 Missed 505 | . 16 13 31 9 . 2 20 46 . 25 4 39 15 77 15 25 83 11 29 45 Damage Taken 18598 | . 369 684 1074 626 . 150 890 1205 . 433 32 1180 474 2096 657 1220 3009 611 1228 2660 Core 2730 | . 40 167 190 53 . 16 51 168 . 30 5 120 66 167 42 127 371 116 222 779 Absorbed by Shields 419 | . . . . . . . . . . . . 22 . 355 42 . . . . . Reduced by Siege Mode 47 | . . . . . . . . . . . . . . . . 47 . . . . Redirected to Shielding 70 | . . . 25 12 . . . . . . . . . . . . . . . 33 Ignored by Resistances 630 | . . . . . . . . 75 . 81 . 23 . 174 70 207 . . . . Regen/Repaired (Parts) 119 | . . . 119 . . . . . . . . . . . . . . . . . Core Remaining (%) 46 | 100 . 17 . . . 35 . . . 54 . . 72 . . . . 3 . . Volleys Fired 1000 | . 37 81 84 29 . 6 80 57 . 55 3 76 32 98 22 36 157 22 42 83 Largest 2 | . 2 2 2 2 . 2 2 2 . 2 2 2 1 2 2 2 2 2 2 2 Hottest 181 | . 60 60 50 53 . 53 100 56 . 101 77 147 83 180 180 180 180 86 99 181 Shots Fired 1765 | . 72 162 167 54 . 9 143 163 . 96 6 115 32 149 44 63 310 25 57 98 Gun 986 | . 72 162 167 50 . 6 122 154 . 45 3 28 . 29 . . 48 9 19 72 Cannon 694 | . . . . . . . 7 . . 39 3 69 32 117 44 56 262 3 38 24 Launcher 41 | . . . . 4 . 3 14 . . 3 . 4 . . . . . 13 . . Special 44 | . . . . . . . . 9 . 9 . 14 . 3 . 7 . . . 2 Kinetic 966 | . 37 147 167 50 . 6 52 98 . 84 6 69 32 55 . . 108 12 19 24 Thermal 637 | . 35 15 . . . . . 56 . . . 28 . 91 44 56 202 . 38 72 Explosive 41 | . . . . 4 . 3 14 . . 3 . 4 . . . . . 13 . . Electromagnetic 77 | . . . . . . . 77 . . . . . . . . . . . . . Robot Hit Streak 29 | . 12 10 12 5 . 9 13 29 . 19 7 6 4 7 6 10 14 2 11 20 Robot Miss Streak 10 | . 3 5 8 4 . 1 5 3 . 9 3 10 2 7 2 3 4 1 5 7 Penetration Max 1 | . . . . . . . 1 1 . . . 1 . 1 . . . . . . Secondary Targets 12 | . 1 4 5 1 . . 1 . . . . . . . . . . . . . Max Gunslinging Chain 1 | . 1 1 1 1 . . 1 . . . . . . . . . . . . . Capacitor 42 | . . . . . . . . . . . . . . . . . . . . 42 Autonomous 57 | . . . . . . . . 57 . . . . . . . . . . . . Shots Hit Robots 1055 | . 43 93 108 32 . 6 95 103 . 56 4 47 17 78 23 39 196 8 33 74 Core Hits 565 | . 20 43 63 13 . 8 92 40 . 50 4 25 7 37 12 11 58 14 19 49 Critical Kills 19 | . . . 2 . . . . . . 2 . 3 . 2 1 4 4 1 . . Critical Parts Destroyed 20 | . 1 1 1 . . . . . . 3 . 4 . . . . 9 1 . . Critical Strikes 45 | . 1 1 3 . . . . . . 5 . 7 1 2 1 4 17 2 . 1 Meltdown 7 | . . . . . . . . . . . . . . 2 1 4 . . . . Destroy 32 | . 1 1 3 . . . . . . 5 . 7 . . . . 13 2 . . Blast 6 | . . . . . . . . . . . . . 1 . . . 4 . . 1 Melee Attacks 13 | . . . . . . . . 13 . . . . . . . . . . . . Impact 13 | . . . . . . . . 13 . . . . . . . . . . . . Slashing . | . . . . . . . . . . . . . . . . . . . . . Piercing . | . . . . . . . . . . . . . . . . . . . . . Sneak Attacks . | . . . . . . . . . . . . . . . . . . . . . Combat Hostiles . | . . . . . . . . . . . . . . . . . . . . . Follow-up Attacks . | . . . . . . . . . . . . . . . . . . . . . Damage Inflicted 28420 | . 436 803 2007 680 . 381 2598 2332 . 1177 76 1106 1443 3615 834 1055 5089 1023 941 2824 Guns 11668 | . 432 779 2004 507 . 78 1815 2332 . 397 28 326 . 344 . . 191 20 299 2116 Cannons 13718 | . . . . . . . 85 . . 556 48 739 1443 2679 834 1055 4898 54 626 701 Explosions 2939 | . . . . 173 . 303 698 . . 224 . . . 592 . . . 949 . . Melee . | . . . . . . . . . . . . . . . . . . . . . Ramming 95 | . 4 24 3 . . . . . . . . 41 . . . . . . 16 7 Kinetic 12095 | . 147 670 2004 507 . 78 677 889 . 953 76 745 1443 1550 . . 1282 74 299 701 Thermal 12193 | . 285 109 . 54 . . 71 1443 . . . 320 . 1473 834 1055 3807 . 626 2116 Explosive 2784 | . . . . 119 . 303 627 . . 224 . . . 562 . . . 949 . . Electromagnetic 1253 | . . . . . . . 1223 . . . . . . 30 . . . . . . Impact . | . . . . . . . . . . . . . . . . . . . . . Slashing . | . . . . . . . . . . . . . . . . . . . . . Piercing . | . . . . . . . . . . . . . . . . . . . . . Highest Corruption 19 | . . . . . . . 3 4 4 4 . . 3 5 5 5 19 19 2 2 Average Corruption 6 | . . . . . . . 3 3 4 4 . . 3 4 5 5 9 19 1 2 Corruption Purged . | . . . . . . . . . . . . . . . . . . . . . Corruption Blocked . | . . . . . . . . . . . . . . . . . . . . . Effects 363 | . . . . . . . 4 41 . 26 . . 4 41 24 55 87 48 5 28 Message Errors 97 | . . . . . . . 1 10 . 8 . . 2 12 9 10 23 11 3 8 Matter Fused 84 | . . . . . . . . 12 . 5 . . 1 12 6 15 14 13 . 6 Heat Flow Errors 43 | . . . . . . . . 5 . 3 . . . 6 5 9 6 5 1 3 Energy Discharges 44 | . . . . . . . . 6 . 5 . . . 4 1 10 13 3 . 2 Parts Rejected 3 | . . . . . . . . . . . . . . . . . 2 1 . . Parts Fused 3 | . . . . . . . . . . . . . . 2 . . 1 . . . Data Loss (minor) 40 | . . . . . . . 2 3 . 3 . . 1 2 2 7 9 6 . 5 Data Loss (major) 14 | . . . . . . . . 2 . 1 . . . 2 1 2 2 2 . 2 Misfires 14 | . . . . . . . . 2 . . . . . . . . 7 3 . 2 Alerts 3 | . . . . . . . . 1 . . . . . . . . 1 1 . . Weapon Failures 18 | . . . . . . . 1 . . 1 . . . 1 . 2 9 3 1 . Overload Shots . | . . . . . . . . . . . . . . . . . . . . . Overflow Damage 736 | . . . . 42 . . 27 . . . . 3 213 205 28 14 162 34 8 . Projectiles 590 | . . . . . . . 2 . . . . 3 213 160 28 14 162 . 8 . Explosions 146 | . . . . 42 . . 25 . . . . . . 45 . . . 34 . . Melee . | . . . . . . . . . . . . . . . . . . . . . Knockbacks 56 | . . . . . . . 2 . . 15 . 8 8 8 . . 13 1 . 1 Impact . | . . . . . . . . . . . . . . . . . . . . . Kinetic 50 | . . . . . . . 2 . . 11 . 8 8 6 . . 13 1 . 1 Secondary 6 | . . . . . . . . . . 4 . . . 2 . . . . . . Self-Inflicted Damage 584 | . . 12 . 91 . 84 85 . . . . 21 . 238 . . . 53 . . Shots 16 | . . . . 2 . 3 3 . . . . 2 . 4 . . . 2 . . Rammed 11 | . 1 1 2 . . . . . . . . 5 . . . . . . . 2 Targets Rammed 13 | . 1 1 2 . . . . . . . . 5 . . . . . . 2 2 Kicked 2 | . . . . . . . . . . . . . . . . . . . 2 . Crushed . | . . . . . . . . . . . . . . . . . . . . . Highest Temperature 404 | . 26 58 20 . . . 29 247 . 275 . 168 30 250 350 197 262 221 154 404 Average Temperature 82 | . 11 23 8 . . . 7 106 . 69 . 30 11 77 118 104 97 89 43 105 Received Heat Transfer 3859 | . 108 339 357 204 . 18 423 450 . 165 6 138 258 314 122 264 405 . 54 234 Effects 3 | . . . . . . . . . . . . . . . . . . . . 3 Shutdowns 2 | . . . . . . . . . . . . . . . . . . . . 2 Damage (minor) 1 | . . . . . . . . . . . . . . . . . . . . 1 Siege Activations 1 | . . . . . . . . . . . . . . . . 1 . . . . Total Turns 11 | . . . . . . . . . . . . . . . . 11 . . . . Longest Duration 11 | . . . . . . . . . . . . . . . . 11 . . . . Robots Corrupted . | . . . . . . . . . . . . . . . . . . . . . Combat Hostiles . | . . . . . . . . . . . . . . . . . . . . . Parts Fried 6 | . . . . . . . 6 . . . . . . . . . . . . . Impact Corruptions . | . . . . . . . . . . . . . . . . . . . . . Robots Melted 16 | . . . . . . . . . . . . . . 2 1 6 5 . . 2 Combat Hostiles 12 | . . . . . . . . . . . . . . 2 1 5 2 . . 2 Parts Melted 62 | . . . . . . . . 7 . . . . . 12 5 8 26 . 2 2 Heat Transferred 18347 | . 650 250 . 50 . . 100 1700 . . . 295 . 2257 1300 1650 6100 . 814 3181 Parts Sabotaged . | . . . . . . . . . . . . . . . . . . . . . Parts Stolen . | . . . . . . . . . . . . . . . . . . . . . Parts Stripped . | . . . . . . . . . . . . . . . . . . . . . Power Chain Reactions 2 | . . . . . . . 2 . . . . . . . . . . . . . Alert | -11 -10 -10 -9 -9 -9 -8 -8 -8 -8 -8 -7 -7 -7 -6 -6 -6 -6 -5 -5 -5 ------- Run | Yrd Mat Min Mat Min Exi Min Mat Gar Mat Gar Fac Gar Fac Fac Low Low Zio Pro Fac Gar Peak Influence 1402 | . 265 125 541 332 . 103 743 1402 683 1012 582 1031 732 712 . . . . 578 746 Initial 683 | . . 42 1 187 . . 39 410 683 443 531 407 541 266 . . . . 531 245 Average 421 | . 109 55 346 209 . 98 189 927 683 760 570 669 611 286 . . . . 406 420 Maximum Alert Level 4 | . 1 . 2 1 . . 3 4 2 3 2 3 3 3 . . . . 2 3 Low Security (%) 32 | 100 83 100 12 53 . 100 74 . . . . . . 49 . . . . . . Level 1 15 | . 16 . 33 46 . . 11 . . . . . . 21 . . . . 47 31 Level 2 35 | . . . 54 . . . 13 23 100 36 100 64 93 25 . . . . 52 68 Level 3 13 | . . . . . . . 1 49 . 63 . 35 6 3 . . . . . . Level 4 2 | . . . . . . . . 26 . . . . . . . . . . . . Level 5 . | . . . . . . . . . . . . . . . . . . . . . High Security . | . . . . . . . . . . . . . . . . . . . . . Max Security . | . . . . . . . . . . . . . . . . . . . . . Squads Dispatched 21 | . 2 . 4 1 . . 4 . . . . . 3 4 . 1 . . 2 . Investigation 6 | . . . 3 1 . . 2 . . . . . . . . . . . . . Extermination 4 | . . . . . . . . . . . . . . 2 . . . . 2 . Reinforcement 7 | . 2 . 1 . . . 1 . . . . . 1 2 . . . . . . Assault 3 | . . . . . . . . . . . . . 2 . . 1 . . . . Garrison 1 | . . . . . . . 1 . . . . . . . . . . . . . Intercept . | . . . . . . . . . . . . . . . . . . . . . Searches Triggered 1 | . . . . . . . . . . . . . . . . . . . 1 . Construction Impeded 1 | . . . . . . . . . . . . . . 1 . . . . . . Haulers Reinforced 1 | . . . . . . . . . . . . . 1 . . . . . . . Active Scanning Responses . | . . . . . . . . . . . . . . . . . . . . . Cargo Convoy Interrupts . | . . . . . . . . . . . . . . . . . . . . . Stealth | -11 -10 -10 -9 -9 -9 -8 -8 -8 -8 -8 -7 -7 -7 -6 -6 -6 -6 -5 -5 -5 --------- Run | Yrd Mat Min Mat Min Exi Min Mat Gar Mat Gar Fac Gar Fac Fac Low Low Zio Pro Fac Gar Distress Signals 9 | . . . 4 . . . 2 . . . . . . 3 . . . . . . Communications Jammed . | . . . . . . . . . . . . . . . . . . . . . Distress Signals . | . . . . . . . . . . . . . . . . . . . . . Times Spotted 387 | . 14 14 43 8 . 3 35 31 . 20 1 29 16 34 11 15 69 13 14 17 Peak Tracking Total 8 | . 4 3 7 3 . 3 6 6 . 3 1 4 5 4 4 8 5 5 5 6 Tactical Retreats 36 | . 1 4 2 1 . . . . . 1 . 1 5 5 . 3 11 . 1 1 Traps | -11 -10 -10 -9 -9 -9 -8 -8 -8 -8 -8 -7 -7 -7 -6 -6 -6 -6 -5 -5 -5 ------- Run | Yrd Mat Min Mat Min Exi Min Mat Gar Mat Gar Fac Gar Fac Fac Low Low Zio Pro Fac Gar Traps Triggered 21 | . . . 2 . . . 2 7 . 3 . 3 . 3 . . . . . 1 Indirectly . | . . . . . . . . . . . . . . . . . . . . . Trap Hack Attempts . | . . . . . . . . . . . . . . . . . . . . . Triggered . | . . . . . . . . . . . . . . . . . . . . . Disarmed . | . . . . . . . . . . . . . . . . . . . . . Reprogrammed . | . . . . . . . . . . . . . . . . . . . . . Reused . | . . . . . . . . . . . . . . . . . . . . . Traps Extracted . | . . . . . . . . . . . . . . . . . . . . . Installed . | . . . . . . . . . . . . . . . . . . . . . Triggered . | . . . . . . . . . . . . . . . . . . . . . Machines | -11 -10 -10 -9 -9 -9 -8 -8 -8 -8 -8 -7 -7 -7 -6 -6 -6 -6 -5 -5 -5 ---------- Run | Yrd Mat Min Mat Min Exi Min Mat Gar Mat Gar Fac Gar Fac Fac Low Low Zio Pro Fac Gar Machines Disabled 48 | . . . 2 2 . . 8 1 . 4 . 5 5 17 . . 2 . . 2 Max in Single Turn 4 | . . . 1 2 . . 2 1 . 2 . 1 1 4 . . 1 . . 1 Garrison Relay 5 | . . . . . . . . 2 . . . 2 . . . . . . . 1 Phase Generator 1 | . . . . . . . . . . 1 . . . . . . . . . . Machines Repaired . | . . . . . . . . . . . . . . . . . . . . . Machines Dismantled . | . . . . . . . . . . . . . . . . . . . . . Machines Sabotaged . | . . . . . . . . . . . . . . . . . . . . . Overloaded Fab Kills . | . . . . . . . . . . . . . . . . . . . . . Hacking | -11 -10 -10 -9 -9 -9 -8 -8 -8 -8 -8 -7 -7 -7 -6 -6 -6 -6 -5 -5 -5 --------- Run | Yrd Mat Min Mat Min Exi Min Mat Gar Mat Gar Fac Gar Fac Fac Low Low Zio Pro Fac Gar Machines Accessed 33 | . . . 7 1 1 . 4 3 1 4 2 2 1 4 . . . . 3 . Terminals 20 | . . . 6 . . . 3 3 . 4 1 2 1 . . . . . . . Fabricators 2 | . . . . . . . . . . . . . . 2 . . . . . . Repair Stations 2 | . . . 1 . . . . . . . . . . . . . . . 1 . Recycling Units 2 | . . . . . . . . . . . . . . 1 . . . . 1 . Scanalyzers 1 | . . . . . . . . . . . . . . 1 . . . . . . Garrison Access 4 | . . . . . . . 1 . 1 . 1 . . . . . . . 1 . Total Hacks 61 | . . . 15 1 1 . 6 4 1 5 4 3 2 14 . . . . 5 . Successful 33 | . . . 4 1 1 . 4 3 1 4 1 2 . 8 . . . . 4 . Failed 28 | . . . 11 . . . 2 1 . 1 3 1 2 6 . . . . 1 . Catastrophic 4 | . . . 3 . . . . 1 . . . . . . . . . . . . Database Lockouts . | . . . . . . . . . . . . . . . . . . . . . Manual 18 | . . . 12 . 1 . 3 . . . . . 2 . . . . . . . Terminals 35 | . . . 13 . . . 5 4 . 5 3 3 2 . . . . . . . Fabricators 4 | . . . . . . . . . . . . . . 4 . . . . . . Repair Stations 3 | . . . 2 . . . . . . . . . . . . . . . 1 . Recycling Units 6 | . . . . . . . . . . . . . . 3 . . . . 3 . Scanalyzers 7 | . . . . . . . . . . . . . . 7 . . . . . . Garrison Access 4 | . . . . . . . 1 . 1 . 1 . . . . . . . 1 . Terminal Hacks 16 | . . . 2 1 1 . 3 3 . 4 . 2 . . . . . . . . Open Door 3 | . . . . 1 . . . 1 . 1 . . . . . . . . . . Branch Access Points 1 | . . . 1 . . . . . . . . . . . . . . . . . Emergency Access Points 3 | . . . . . . . . 1 . 1 . 1 . . . . . . . . Alert Level 3 | . . . 1 . . . 2 . . . . . . . . . . . . . Zone Layout 1 | . . . . . . . 1 . . . . . . . . . . . . . Garrison Registry 2 | . . . . . . . . . . 1 . 1 . . . . . . . . Patrol Navigation 2 | . . . . . . . . 1 . 1 . . . . . . . . . . Derelict Proto ID Bank 1 | . . . . . 1 . . . . . . . . . . . . . . . Fabricator Hacks 1 | . . . . . . . . . . . . . . 1 . . . . . . Network Status 1 | . . . . . . . . . . . . . . 1 . . . . . . Repair Station Hacks 3 | . . . 2 . . . . . . . . . . . . . . . 1 . Scan Component 1 | . . . 1 . . . . . . . . . . . . . . . . . Repair 1 | . . . 1 . . . . . . . . . . . . . . . . . Refit 1 | . . . . . . . . . . . . . . . . . . . 1 . Recycling Unit Hacks 2 | . . . . . . . . . . . . . . . . . . . 2 . Process 1 | . . . . . . . . . . . . . . . . . . . 1 . Retrieve Matter 1 | . . . . . . . . . . . . . . . . . . . 1 . Scanalyzer 7 | . . . . . . . . . . . . . . 7 . . . . . . Insert Component 3 | . . . . . . . . . . . . . . 3 . . . . . . Analyze 4 | . . . . . . . . . . . . . . 4 . . . . . . Garrison Access Hacks 4 | . . . . . . . 1 . 1 . 1 . . . . . . . 1 . Unlock Access 4 | . . . . . . . 1 . 1 . 1 . . . . . . . 1 . Unauthorized Hacks . | . . . . . . . . . . . . . . . . . . . . . Terminals . | . . . . . . . . . . . . . . . . . . . . . Fabricators . | . . . . . . . . . . . . . . . . . . . . . Repair Stations . | . . . . . . . . . . . . . . . . . . . . . Recycling Units . | . . . . . . . . . . . . . . . . . . . . . Scanalyzers . | . . . . . . . . . . . . . . . . . . . . . Garrison Access . | . . . . . . . . . . . . . . . . . . . . . Data Cores Recovered 2 | . . . 1 . . . 1 . . . . . . . . . . . . . Used . | . . . . . . . . . . . . . . . . . . . . . Hacking Detections 22 | . . . 6 . . . 3 2 1 2 2 1 1 3 . . . . 1 . Full Trace Events 1 | . . . 1 . . . . . . . . . . . . . . . . . Feedback Events . | . . . . . . . . . . . . . . . . . . . . . Feedback Blocked . | . . . . . . . . . . . . . . . . . . . . . Robot Schematics Acquired 3 | . . . . . . . . . . . . . . . . . 3 . . . Robots Built . | . . . . . . . . . . . . . . . . . . . . . Authchips . | . . . . . . . . . . . . . . . . . . . . . Time . | . . . . . . . . . . . . . . . . . . . . . Total Robot Build Rating . | . . . . . . . . . . . . . . . . . . . . . Part Schematics Acquired 13 | . . . . . . . . . . . . . . 3 . . 10 . . . Parts Built . | . . . . . . . . . . . . . . . . . . . . . Authchips . | . . . . . . . . . . . . . . . . . . . . . Time . | . . . . . . . . . . . . . . . . . . . . . Total Part Build Rating . | . . . . . . . . . . . . . . . . . . . . . Parts Repaired 1 | . . . 1 . . . . . . . . . . . . . . . . . Time 26 | . . . 26 . . . . . . . . . . . . . . . . . Parts Recycled . | . . . . . . . . . . . . . . . . . . . . . Recycled Matter 139 | . . . . . . . . . . . . . . . . . . . 139 . Retrieved Matter 139 | . . . . . . . . . . . . . . . . . . . 139 . Retrieved Components . | . . . . . . . . . . . . . . . . . . . . . Parts Scanalyzed 3 | . . . . . . . . . . . . . . 3 . . . . . . Part Schematics Acquired 3 | . . . . . . . . . . . . . . 3 . . . . . . Parts Damaged 1 | . . . . . . . . . . . . . . 1 . . . . . . Bothacking | -11 -10 -10 -9 -9 -9 -8 -8 -8 -8 -8 -7 -7 -7 -6 -6 -6 -6 -5 -5 -5 ------------ Run | Yrd Mat Min Mat Min Exi Min Mat Gar Mat Gar Fac Gar Fac Fac Low Low Zio Pro Fac Gar Used RIF Installer 3 | . . . . . . . . 1 . . . 1 . . . . . . . 1 Zone Cloak 2 | . . . . . . . . . . . . 1 . . . . . . . 1 Robots Hacked 14 | . . . . . . . . . . 3 . 7 . 1 . 2 . . . 1 Non-combat 2 | . . . . . . . . . . 1 . 1 . . . . . . . . Combat 12 | . . . . . . . . . . 2 . 6 . 1 . 2 . . . 1 Robot Hacks Applied 18 | . . . . . . . . . . 3 . 9 . 1 . 4 . . . 1 purge_threat 2 | . . . . . . . . . . . . 2 . . . . . . . . reprogram_traps 1 | . . . . . . . . . . . . 1 . . . . . . . . reboot_propulsion 1 | . . . . . . . . . . . . . . . . 1 . . . . disrupt_area 1 | . . . . . . . . . . . . . . . . 1 . . . . amplify_resonance 5 | . . . . . . . . . . . . 3 . 1 . 1 . . . . disable_weapons 1 | . . . . . . . . . . . . 1 . . . . . . . . reboot_system 2 | . . . . . . . . . . 1 . . . . . . . . . 1 overwrite_iff 1 | . . . . . . . . . . . . . . . . 1 . . . . formatsys_high 4 | . . . . . . . . . . 2 . 2 . . . . . . . . Relay Couplers Released 25 | . . . . . . . . 8 . . . 13 . . . . . . . 4 Machine Destruction 22 | . . . . . . . . 8 . . . 10 . . . . . . . 4 Programmers 3 | . . . . . . . . . . . . 3 . . . . . . . . Attached 11 | . . . . . . . . . . 2 . 4 . 1 . 2 . . . 2 Fabnet Peak Effective % . | . . . . . . . . . . . . . . . . . . . . . Robots Rewired 9 | . . . . . . . . 5 . 2 . . . . . 1 . . . 1 Allies Hacked . | . . . . . . . . . . . . . . . . . . . . . Hacks Repelled . | . . . . . . . . . . . . . . . . . . . . . Allies | -11 -10 -10 -9 -9 -9 -8 -8 -8 -8 -8 -7 -7 -7 -6 -6 -6 -6 -5 -5 -5 -------- Run | Yrd Mat Min Mat Min Exi Min Mat Gar Mat Gar Fac Gar Fac Fac Low Low Zio Pro Fac Gar Total Allies 17 | . . . . 1 . . . 5 . 4 . 4 . . . 2 . . . 1 Largest Group 3 | . . . . 1 . . . 3 . 2 2 2 1 . . 2 . . . 1 Highest-Rated Group 175 | . . . . 31 . . . 70 . 104 40 175 95 . . 58 . . . 85 Highest-Rated Ally 104 | . . . . 31 . . . 39 . 104 20 95 95 . . 29 . . . 85 Total Orders 2 | . . . . . . . . . . 2 . . . . . . . . . . STAY 1 | . . . . . . . . . . 1 . . . . . . . . . . DROP 1 | . . . . . . . . . . 1 . . . . . . . . . . Ally Attacks 129 | . . . . 9 . . . 43 . 2 3 41 5 . . 24 . . . 2 Total Damage 3318 | . . . . 42 . . . 604 . 100 77 1737 227 . . 397 . . . 134 Kills 24 | . . . . 2 . . . 7 . 2 . 10 1 . . 2 . . . . Allies Corrupted . | . . . . . . . . . . . . . . . . . . . . . Allies Melted 2 | . . . . . . . . . . . . . . . . 1 . . . 1 Intel | -11 -10 -10 -9 -9 -9 -8 -8 -8 -8 -8 -7 -7 -7 -6 -6 -6 -6 -5 -5 -5 ------- Run | Yrd Mat Min Mat Min Exi Min Mat Gar Mat Gar Fac Gar Fac Fac Low Low Zio Pro Fac Gar Robot Analysis Total . | . . . . . . . . . . . . . . . . . . . . . Derelict Logs Recovered 9 | . . 1 . 2 . . . . . . . . . . 3 1 . 2 . . Drone Launches . | . . . . . . . . . . . . . . . . . . . . . Drone Recoveries . | . . . . . . . . . . . . . . . . . . . . . Decoded 0b10 Intel 59 | . . . . . . . . . . . . . . . . . . . 22 37 Traps 26 | . . . . . . . . . . . . . . . . . . . 7 19 Emergency Access 2 | . . . . . . . . . . . . . . . . . . . . 2 Items 27 | . . . . . . . . . . . . . . . . . . . 14 13 Patrols 3 | . . . . . . . . . . . . . . . . . . . 1 2 Guards 1 | . . . . . . . . . . . . . . . . . . . . 1 Exploration | -11 -10 -10 -9 -9 -9 -8 -8 -8 -8 -8 -7 -7 -7 -6 -6 -6 -6 -5 -5 -5 ------------- Run | Yrd Mat Min Mat Min Exi Min Mat Gar Mat Gar Fac Gar Fac Fac Low Low Zio Pro Fac Gar Turns Passed 25300 | 72 592 2029 1381 1196 518 243 1253 1860 28 1152 342 1893 848 2464 977 2385 2397 1098 760 1812 Spaces Moved 9722 | 41 236 806 686 654 257 95 424 926 17 569 219 760 307 861 376 823 677 368 226 394 Core 7 | 5 . . . . . . . . . . . . . . . . . . . 2 Treads 5542 | 36 236 315 298 654 257 95 424 172 . . . 486 307 861 376 424 289 . 26 286 Legs 104 | . . . . . . . . . . . . . . . . . . . 104 . Wheels 4069 | . . 491 388 . . . . 754 17 569 219 274 . . . 399 388 368 96 106 Hover . | . . . . . . . . . . . . . . . . . . . . . Flight . | . . . . . . . . . . . . . . . . . . . . . Fastest Speed 50 | 50 160 130 105 160 160 240 160 145 160 145 145 145 243 243 243 243 250 270 210 215 Average Speed 215 | 146 195 172 142 160 200 240 216 165 160 152 145 207 243 243 243 277 286 282 264 364 Slowest Speed 2100 | 160 240 240 160 160 240 240 240 320 160 160 145 245 243 243 243 315 660 285 460 2100 Overloaded Moves . | . . . . . . . . . . . . . . . . . . . . . Propulsion Burnouts . | . . . . . . . . . . . . . . . . . . . . . Robots Hopped . | . . . . . . . . . . . . . . . . . . . . . Cave-ins Triggered . | . . . . . . . . . . . . . . . . . . . . . Exploration Rate (%) 49 | 4 33 94 64 97 60 26 59 90 6 75 7 86 12 27 65 83 60 59 9 31 Regions Visited 20 Branch Regions 8 Pre-discovered Areas 3 | . . 1 . 1 . . . . . . . . . . . . . 1 . . Known Exits Taken 6 | . . . 1 . . . 1 . 1 . 1 . . . 1 . . . 1 . Unknown Exits Taken 11 | 1 1 1 . 1 1 1 . . . . . . 1 1 . 1 1 1 . . Scrap Searched 6 | . . 1 . 1 . . . . . . . . . . 1 2 1 . . . Spaces Dug 26 | . . . . . . . . 2 . . . 1 4 10 2 . . 7 . . Terrain Destroyed 616 | . . . . 71 . 33 89 4 . 90 1 51 12 103 16 21 18 89 7 11 Melee 2 | . . . . . . . . 2 . . . . . . . . . . . . Projectile 149 | . . . . . . 1 1 2 . 2 1 17 12 39 16 21 18 1 7 11 AOE 465 | . . . . 71 . 32 88 . . 88 . 34 . 64 . . . 88 . . Terrain Rammed . | . . . . . . . . . . . . . . . . . . . . . Walls Destroyed . | . . . . . . . . . . . . . . . . . . . . . Machines Disabled . | . . . . . . . . . . . . . . . . . . . . . Actions | -11 -10 -10 -9 -9 -9 -8 -8 -8 -8 -8 -7 -7 -7 -6 -6 -6 -6 -5 -5 -5 --------- Run | Yrd Mat Min Mat Min Exi Min Mat Gar Mat Gar Fac Gar Fac Fac Low Low Zio Pro Fac Gar Total 12569 | 52 301 1308 933 751 264 101 617 1144 17 766 238 981 362 1107 406 877 894 409 334 707 Wait 1110 | . 13 404 85 51 . . 67 62 . 78 8 55 4 68 6 2 5 11 26 165 Move 9706 | 40 235 805 685 653 256 94 424 925 17 568 219 759 306 860 375 822 676 367 226 394 Hop . | . . . . . . . . . . . . . . . . . . . . . Pick Up 199 | 5 10 11 28 5 2 . 10 19 . 10 2 25 2 18 1 5 22 2 9 13 Fast Attach 81 | 4 2 . 9 1 . . 4 4 . 3 3 5 6 13 1 . 7 . 5 14 Attach 122 | 1 1 5 9 3 2 . 7 12 . 1 . 14 . 14 . 7 18 3 14 11 Detach 24 | . . . . . . . 2 2 . . . 2 . 5 . 1 3 2 3 4 Swap 67 | . . . 7 3 . 1 13 7 . 12 . 7 4 5 . 2 1 1 1 3 Drop 177 | 2 2 1 24 6 4 . 10 24 . 15 3 21 8 26 1 2 5 1 6 16 Fire 1000 | . 37 81 84 29 . 6 80 57 . 55 3 76 32 98 22 36 157 22 42 83 Melee 13 | . . . . . . . . 13 . . . . . . . . . . . . Ram 1 | . . 1 . . . . . . . . . . . . . . . . . . Kick 2 | . . . . . . . . . . . . . . . . . . . 2 . Crush 10 | . 1 . 2 . . . . . . . . 5 . . . . . . . 2 Escape Stasis 57 | . . . . . . . . 19 . 24 . 12 . . . . . . . 2 Rewire . | . . . . . . . . . . . . . . . . . . . . . Trap . | . . . . . . . . . . . . . . . . . . . . . Miscellaneous . | . . . . . . . . . . . . . . . . . . . . . Route ------- -11/Scrapyard -10/Materials -10/Mines (discovered 2 exits: *Mat x2) -9/Materials (discovered 4 exits: *Mat x2 / *Min / *Sto) -9/Mines (discovered 3 exits: *Mat x2 / *Exi) -9/Exiles -8/Mines -8/Materials (discovered 2 exits: *Fac / Gar) -8/Garrison (discovered 3 exits: *Mat x3) -8/Materials -8/Garrison (discovered 3 exits: *Fac x3) -7/Factory (discovered 2 exits: *Fac / Gar) -7/Garrison (discovered 3 exits: *Fac x3) -7/Factory -6/Factory (discovered 2 exits: *Fac / [*Low]) -6/Lower Caves -6/Lower Caves (discovered 2 exits: *Fac / [*Zio]) -6/Zion -5/Proximity Caves -5/Factory -5/Garrison History --------- Turn | Location | Event 21 | -11/Scrapyard | Discovered new exit (range 16) 73 | -11/Scrapyard | Entered Materials 232 | -10/Materials | Discovered new exit (range 13) 302 | -10/Materials | Build established: Mutant 665 | -10/Materials | Entered Mines 696 | -10/Mines | Met a Derelict bent on vengeance 972 | -10/Mines | A weapon hastily lodged in a ceiling crevice suddenly fell to the ground 1207 | -10/Mines | Received a Rocket Launcher from a helpful Derelict 1393 | -10/Mines | Learned location of Zion (-6) 1529 | -10/Mines | Core integrity fell below 50% 1570 | -10/Mines | Lost 3 parts (1n1u1w) 1585 | -10/Mines | Discovered new exit (range 12) 1598 | -10/Mines | Discovered new exit (range 16) 1970 | -10/Mines | Core integrity fell below 20% 2694 | -10/Mines | Entered Materials 2694 | -9/Materials | Evolved 2 slots: Propulsion x1, Utility x1 2953 | -9/Materials | Discovered new exit (range 15) 3151 | -9/Materials | Repaired Lgt. Treads 3263 | -9/Materials | Discovered new exit (range 7) 3452 | -9/Materials | Build established: Scavenger-Mutant 3929 | -9/Materials | Discovered new exit (range 3) 3972 | -9/Materials | Identified exit to Mines 3972 | -9/Materials | Identified exit to Storage 4075 | -9/Materials | Entered Mines 4101 | -9/Mines | Found a damaged Exp. Sensor Array with a note attached 4106 | -9/Mines | Found Prototype Device 4211 | -9/Mines | Core integrity fell below 50% 4235 | -9/Mines | Discovered new exit (range 15) 4353 | -9/Mines | Met a Derelict shopkeep closing up shop 4443 | -9/Mines | Received a Mining Laser from a helpful Derelict 4531 | -9/Mines | Found a hidden stash of uninstalled traps 4648 | -9/Mines | Learned location of 1 exit from Lower Caves 4729 | -9/Mines | Discovered new exit (range 6) 5263 | -9/Mines | Deemed a non-threat by the Exiles lab entrance 5263 | -9/Mines | Discovered new exit (range 5) 5271 | -9/Mines | Entered Exiles 5311 | -9/Exiles | Met 8R-AWN 5337 | -9/Exiles | Met EX-HEX 5385 | -9/Exiles | Met EX-BIN 5403 | -9/Exiles | Aligned with FarCom system 5404 | -9/Exiles | Given EX-Vault access code 5443 | -9/Exiles | Opened EX-Vault 5478 | -9/Exiles | Found AWS/Thermal 5534 | -9/Exiles | Warned to stay clear of 0b10 Research branches 5601 | -9/Exiles | Met EX-DEC 5761 | -9/Exiles | Discovered new exit (range 14) 5781 | -9/Exiles | Build established: Mutant 5789 | -9/Exiles | Left Exiles lab with AWS/Thermal 5789 | -9/Exiles | Entered Mines 5991 | -8/Mines | Discovered new exit (range 14) 6032 | -8/Mines | Entered Materials 6032 | -8/Materials | Evolved 2 slots: Propulsion x1, Utility x1 6330 | -8/Materials | Build established: Scavenger-Mutant 7192 | -8/Materials | Garrison activated, responded to threat 7215 | -8/Materials | Discovered new exit (range 16) 7285 | -8/Materials | Identified exit to Garrison 7285 | -8/Materials | Entered Garrison 7361 | -8/Garrison | Triggered checkpoint 7537 | -8/Garrison | Triggered checkpoint 7573 | -8/Garrison | Triggered checkpoint 7727 | -8/Garrison | Triggered checkpoint 7731 | -8/Garrison | Garrison Relay disabled 7969 | -8/Garrison | Triggered checkpoint 8060 | -8/Garrison | Discovered new exit (range 10) 8111 | -8/Garrison | Triggered checkpoint 8161 | -8/Garrison | Discovered new exit (range 5) 8557 | -8/Garrison | Discovered new exit (range 12) 8654 | -8/Garrison | Lost 3 allies 8755 | -8/Garrison | Triggered checkpoint 8918 | -8/Garrison | Installed Relay Interface Framework 8952 | -8/Garrison | Garrison Relay disabled 9145 | -8/Garrison | Entered Materials 9173 | -8/Materials | Identified exit to Garrison 9173 | -8/Materials | Entered Garrison 9287 | -8/Garrison | Triggered checkpoint 9315 | -8/Garrison | Triggered checkpoint 9599 | -8/Garrison | Phase Generator disabled 9618 | -8/Garrison | Discovered new exit (range 8) 9655 | -8/Garrison | Triggered checkpoint 9843 | -8/Garrison | Triggered checkpoint 9900 | -8/Garrison | Discovered new exit (range 11) 10069 | -8/Garrison | Triggered checkpoint 10181 | -8/Garrison | Triggered checkpoint 10299 | -8/Garrison | Discovered new exit (range 80) 10299 | -8/Garrison | Discovered new exit (range 48) 10299 | -8/Garrison | Discovered new exit (range 16) 10325 | -8/Garrison | Entered Factory 10325 | -7/Factory | Accompanied by 2 allies 10325 | -7/Factory | Evolved 2 slots: Utility x2 10635 | -7/Factory | Discovered new exit (range 14) 10667 | -7/Factory | Identified exit to Garrison 10667 | -7/Factory | Entered Garrison 10667 | -7/Garrison | Accompanied by 1 ally 10745 | -7/Garrison | Triggered checkpoint 10880 | -7/Garrison | Build established: Mutant 11186 | -7/Garrison | Triggered checkpoint 11200 | -7/Garrison | Triggered checkpoint 11223 | -7/Garrison | Triggered checkpoint 11382 | -7/Garrison | Build established: Bothacker-Mutant 11467 | -7/Garrison | Garrison Relay disabled 11574 | -7/Garrison | Discovered new exit (range 15) 11598 | -7/Garrison | Expanded RIF knowledge: Zone Cloak 11633 | -7/Garrison | Triggered checkpoint 11653 | -7/Garrison | H-XX Assembler disabled 12040 | -7/Garrison | Found embedded Infiltrators 12049 | -7/Garrison | Discovered new exit (range 13) 12159 | -7/Garrison | Triggered checkpoint 12204 | -7/Garrison | Garrison Relay disabled 12229 | -7/Garrison | Discovered new exit (range 7) 12229 | -7/Garrison | Discovered new exit (range 53) 12229 | -7/Garrison | Discovered new exit (range 36) 12389 | -7/Garrison | Triggered checkpoint 12443 | -7/Garrison | Triggered checkpoint 12560 | -7/Garrison | Entered Factory 12560 | -7/Factory | Accompanied by 1 ally 12960 | -7/Factory | First assault squad dispatched 13223 | -7/Factory | Discovered new exit (range 8) 13408 | -7/Factory | Entered another Factory area 13408 | -6/Factory | Evolved 2 slots: Utility x2 14241 | -6/Factory | Lost 4 parts (1p3u) 15276 | -6/Factory | Discovered new exit (range 16) 15713 | -6/Factory | Discovered new exit (range 6) 15770 | -6/Factory | Found Hvy. Reflective Plating 15775 | -6/Factory | Found Hvy. Reflective Plating 15781 | -6/Factory | Found Hvy. Reflective Plating 15872 | -6/Factory | Entered Lower Caves 15873 | -6/Lower Caves | Identified exit to Lower Caves 16043 | -6/Lower Caves | Learned Factory interactive machine intel 16822 | -6/Lower Caves | Learned Factory stockpile data 16849 | -6/Lower Caves | Entered another Lower Caves area 17087 | -6/Lower Caves | Discovered new exit (range 14) 17377 | -6/Lower Caves | Encountered a Warlord checkpoint 17459 | -6/Lower Caves | Spotted B-75 Beast 17812 | -6/Lower Caves | Attracted the attention of an 0b10 outpost 18123 | -6/Lower Caves | Build established: Hauler-Mutant 18173 | -6/Lower Caves | Discovered new exit (range 5) 19234 | -6/Lower Caves | Entered Zion 19263 | -6/Zion | Given A8's code to call for help 19449 | -6/Zion | Found Prototype Device 19581 | -6/Zion | Discovered new exit (range 14) 19819 | -6/Zion | RIF detected upon attempting to enter Zion 19819 | -6/Zion | Attacked by Zionites 19819 | -6/Zion | Spotted KR-7SG(B) 19819 | -6/Zion | Spotted OF-RGB(B) 19843 | -6/Zion | Destroyed OF-RGB(B) 19858 | -6/Zion | Destroyed KR-7SG(B) 20615 | -6/Zion | Core integrity fell below 50% 20615 | -6/Zion | System corruption reached 10% 20679 | -6/Zion | Found Prototype Processor 20683 | -6/Zion | Found Prototype Hackware 20686 | -6/Zion | Found Prototype Processor 20690 | -6/Zion | Found Prototype Processor 20706 | -6/Zion | Found Prototype Processor 21188 | -6/Zion | Core integrity fell below 20% 21215 | -6/Zion | Lost 5 parts (1p2n2u) 21631 | -6/Zion | Entered Proximity Caves 21633 | -5/Proximity Caves | Spotter reported a threat 21634 | -5/Proximity Caves | Spotter reported a threat 21843 | -5/Proximity Caves | Spotter reported a threat 22346 | -5/Proximity Caves | Learned Factory emergency access door positions 22508 | -5/Proximity Caves | Lost 3 parts (1p2n) 22640 | -5/Proximity Caves | Discovered new exit (range 16) 22692 | -5/Proximity Caves | Learned location of Armory (-3) 22729 | -5/Proximity Caves | Entered Factory 22729 | -5/Factory | Evolved 2 slots: Power x1, Utility x1 22732 | -5/Factory | Loaded intel: 50 interactive machine locations 22747 | -5/Factory | Identified Exp. System Shield 22748 | -5/Factory | Identified Spectral Analyzer (x2) 23029 | -5/Factory | Search patrols dispatched 23083 | -5/Factory | Lost 9 parts (2p4n1u2w) 23489 | -5/Factory | Identified exit to Garrison 23489 | -5/Factory | Entered Garrison 23493 | -5/Garrison | Identified Exp. Core Analyzer 23549 | -5/Garrison | Triggered checkpoint 23646 | -5/Garrison | Heavy support dispatched to Factory 23682 | -5/Garrison | Expanded RIF knowledge: Zone Cloak 23754 | -5/Garrison | Build established: Mutant 23777 | -5/Garrison | Garrison Relay disabled 24091 | -5/Garrison | Build established: Bothacker-Mutant 24189 | -5/Garrison | Spotted B-90 Cyclops 24342 | -5/Garrison | Heavy support dispatched to Factory 24644 | -5/Garrison | Rewired B-75 Beast 24682 | -5/Garrison | Core integrity fell below 50% 24697 | -5/Garrison | Destroyed B-90 Cyclops 24715 | -5/Garrison | Lost 5 parts (2n3u) 24873 | -5/Garrison | Found Quantum Capacitor 24927 | -5/Garrison | Triggered checkpoint 24988 | -5/Garrison | Spotted B-75 Beast 25000 | -5/Garrison | Triggered checkpoint 25070 | -5/Garrison | Heavy support dispatched to Factory 25231 | -5/Garrison | Destroyed B-75 Beast 25287 | -5/Garrison | Core integrity fell below 20% 25297 | -5/Garrison | Identified Exp. Terrain Scan Processor 25301 | -5/Garrison | Destroyed by S-27 Virus with Autogun Last Messages --------------- 25197_ Acquired Mic. Nuclear Core. 25219_ System corrupted: Matter fused (-6). 25224_ B-60 Warrior critical meltdown. 25231_ B-75 Beast destroyed. 25251_ Acquired 51 matter. 25261_ Dropped Imp. Cooling System. 25263_ Dropped Adv. Heat Sink. 25263_ Acquired Imp. Cooling System. 25269_ Dropped Structural Scanner. 25270_ Acquired Adv. Heat Sink. 25280_ Rnf. Deuterium Engine destroyed. 25288_ S-27 Virus destroyed. 25288_ Imp. Medium Treads destroyed. 25289_ ALERT: Garrison interior compromised. 25289_ Mic. Nuclear Core destroyed. 25290_ Dropped Imp. Weapon Shielding. 25292_ Imp. Cooling System destroyed. 25295_ Hvy. Gatling Laser destroyed. 25297_ Identified Exp. Terrain Scan Processor. 25301_ System corrupted: Heat flow error (+295). Map ----- +----------------------------------------------------+ | #????????????# #??????????????????????????????? | | ##############"##?##???????????????????????????? | | ## #???????????????????????????? | | " #???????????????????+????????? | | ! "##????????????????!!?^????????? | | ############]"# ##?????????????????!!???!??????? | | ???????????## " ##?????????????????????????????? | | ????????????# # "##????????????????[[??????????? | | ????????????### " #????????????????[[?^?!??????? | | ??????????????# ###???????????????????+????????? | | ###########???# "#?????????????????????????????? | | "" """ "##??# ##?????????????????????????????? | | "" """ ""#### #??????????????????????????????? | | ## #??????????????????????????????? | | ## #??????????????????????????????? | | ## #??????????????????????????????? | | ## #??????????????????????????????? | | ## #??????????????????????????????? | | ## ^^#??????????????????????????????? | | ## #??????????????????????????????? | | ## #???????????????##?????????????? | | ## #????????????? #?????????????? | | ##===############# ###########???? | | =%!/] %% ?? | | ! =/]% % ![ ? | | "# !! / ! @%= ? | | "" """ """#########;####sss## ## #????????? | | "" """ "###???????# #??# s#?????#?^^^?????????? | | ###########?????????# ?? ??????^^^?????????? | | ????????????????????####? ????????g???????? | | ????????????????????????? ???????????????? | | ????????????????????????? ?????g???????? | | ????????????????????????## ##^ ^##????????????? | | ?????????????????????????# #?^^^^#?????????????? | | ?????????????????????????? ?? ????????????? | | ?????????????????????????? ?? ???????????? | | ?????????????????????????? ??? ??????????? | | ??????????????????????????# ##???"## ?????????? | | ??????????????????????????? #??ggg?? #????????? | | ??????????????????????????? #???????? #????????? | | ??????????????????????????? ?????????? #????????? | | ????????????????????????????????????????#????????? | | ?????????????????????????????????????????????????? | | ?????????????????????????????????????????????????? | | ?????????????????????????????????????????????????? | | ?????????????????????????????????????????????????? | | ?????????????????????????????????????????????????? | | ?????????????????????????????????????????????????? | | ?????????????????????????????????????????????????? | | ?????????????????????????????????????????????????? | +----------------------------------------------------+ Best States ------------- Heat Dissipation 94 Coolant Potential 80 Energy Generation 27 Energy Capacity 500 Matter Stores 300 Matter Capacity 300 Sight Range 24 Terrain Scan Density 1010 Armor Coverage 1200 Resistance: KI 30 Resistance: TH 25 Core Shielding 20 Weapon Shielding 66 Weapon Cycling 15 Evasion (%) 40 Target Analysis 5 Core Analysis 8 Recoil Reduction 4 Offensive Hacking 10 Defensive Hacking 16 Relay Coupler Types 3 Relay Coupler Value 84 Item Schematics ----------------- Huge Storage Unit | -6/Factory | Scanalyzed Lrn. Tractor Beam | -6/Factory | Scanalyzed Hvy. Linear Accelerator | -6/Factory | Scanalyzed Hvy. Flak Cannon | -6/Zion | Archive Tesla Rifle | -6/Zion | Archive Plasma Flamer | -6/Zion | Archive Arm. Medium Treads | -6/Zion | Archive Energy Well | -6/Zion | Archive Imp. Kinecellerator | -6/Zion | Archive Beamcaster | -6/Zion | Archive Enh. Gauss Cannon | -6/Zion | Archive Imp. Proton Missile Launcher | -6/Zion | Archive Adv. Target Analyzer | -6/Zion | Archive Robot Schematics ------------------ H-55 Commando | -6/Zion | Archive T-07 Excavator | -6/Zion | Archive D-83 Annihilator | -6/Zion | Archive Fabricated ------------ Nothing Alien Tech Used ----------------- None Achievements -------------- None Challenges ------------ None Game ------ Seed WeaponsEfficiencyMembrane Manual? 0 Play Time 02:28:26 Cumulative 191.8 hours Start 2024.06.13 @ 14:17:15 End 2024.06.15 @ 00:31:11 Sessions 10 Manual Loads 0 Difficulty Rogue Special Mode None Game No. 193 Rogue 157 Adventurer 36 Explorer 0 Win Type - Total 10 Types 3/0/7/0/0/0/0/0/0 Lore% 56 Gallery% 82 Achievement% 71 Wizard Run 0 Options --------- Layout 0 ASCII 0 Keyboard 0 Movement Mouse Keybinds 0 Fullscreen 1 Font 18/SmallcapsGlow Map View 76x50 Zoom Use 0% Tactical HUD 1 Map Filters NONE Filters NONE Steam 1 RUN: 3ba31dcb-5fbe-45c3-9ebe-94af824aafe7